fUSD/lending_fUSD_20250413
["ID","MTS","AMOUNT","RATE_DAILY","PERIOD"]
[357886623,1744506646247,-734.38,0.00019726,2]
[357886624,1744506646257,-500.0,0.00019726,2]
[357886625,1744506646266,-500.0,0.00019726,2]
[357886626,1744506646276,-3825.26,0.00019726,2]
[357886627,1744506646285,-1767.81,0.00019726,2]
[357886628,1744506646296,-500.0,0.00019726,2]
[357886629,1744506646305,-575.35,0.00019726,2]
[357886630,1744506646314,-500.0,0.00019726,2]
[357886631,1744506646323,-500.0,0.00019726,2]
[357886632,1744506646332,-500.0,0.00019726,2]
[357886633,1744506646342,-500.0,0.00019726,2]
[357886634,1744506646351,-667.56,0.00019726,2]
[357886635,1744506646360,-500.0,0.00019726,2]
[357886636,1744506646369,-584.82,0.00019726,2]
[357886637,1744506646378,-500.0,0.00019726,2]
[357886638,1744506646387,-281.279536,0.00019726,2]
[357886639,1744506646397,-1327.0,0.00019752,2]
[357886640,1744506646406,-2046.0,0.00019752,2]
[357886641,1744506646416,-1287.0,0.00019752,2]
[357886642,1744506646425,-861.283,0.00019752,2]
[357886643,1744506646435,-1027.924,0.00019752,2]
[357886644,1744506646445,-1279.0,0.00019752,2]
[357886645,1744506646455,-544.0,0.00019752,2]
[357886646,1744506646464,-1437.0,0.00019752,2]
[357886647,1744506646474,-4146.0,0.00019752,2]
[357886648,1744506646483,-575.0,0.00019752,2]
[357886649,1744506646492,-500.0,0.00019753,2]
[357886650,1744506646501,-500.0,0.00019773,2]
[357886651,1744506646510,-500.0,0.00019773,2]
[357886652,1744506646519,-500.0,0.00019773,2]
[357886653,1744506646528,-251.35530558,0.00019773,2]
[357886654,1744506646538,-500.0,0.00019773,2]
[357886655,1744506646547,-500.0,0.00019773,2]
[357886656,1744506646556,-1507.46768988,0.00019809,2]
[357886657,1744506646565,-151.0,0.00019834,2]
[357886658,1744506646574,-151.0,0.00019834,2]
[357886659,1744506646583,-151.0,0.00019834,2]
[357886660,1744506646592,-176.882382,0.00019834,2]
[357886661,1744506646602,-151.0,0.00019834,2]
[357886662,1744506646611,-200.0,0.0001984,2]
[357886663,1744506646619,-1374.761,0.00019855,2]
[357886664,1744506646629,-256.71148408,0.00019863,2]
[357886665,1744506646638,-1000.0,0.000199,2]
[357886666,1744506646647,-369.53994002,0.000199,2]
[357886667,1744506646656,-1093.69994397,0.000199,2]
[357886668,1744506646665,-1507.46768988,0.000199,2]
[357886669,1744506646674,-163.0694071,0.000199,2]
[357886670,1744506646684,-188.21,0.00019934,2]
[357886671,1744506646693,-501.32742413,0.00019973,2]
[357886672,1744506646702,-500.0,0.00019973,2]
[357886673,1744506646711,-500.0,0.00019973,2]
[357886674,1744506646720,-502.78171503,0.00019973,2]
[357886675,1744506646729,-152.65248074,0.00019973,2]
[357886677,1744506646739,-500.0,0.00019973,2]
[357886678,1744506646748,-151.0,0.00019986,2]
[357886680,1744506646757,-277.929388,0.00019986,2]
[357886682,1744506646766,-151.0,0.00019986,2]
[357886684,1744506646775,-151.0,0.00019986,2]
[357886686,1744506646784,-151.0,0.00019986,2]
[357886688,1744506646797,-151.0,0.00019986,2]
[357886690,1744506646809,-151.0,0.00019986,2]
[357886692,1744506646820,-1453.0176411,0.00019986,2]
[357886694,1744506646829,-8004.7475582,0.00019986,2]
[357886696,1744506646838,-150.74648123,0.00019986,2]
[357886698,1744506646847,-16000.8607484,0.00019986,2]
[357886700,1744506646857,-176.882382,0.00019986,2]
[357886701,1744506646867,-86569.3760408,0.00019986,2]
[357886702,1744506646876,-370.4699266,0.00019986,2]
[357886703,1744506646886,-9992.5348479,0.00019986,2]
[357886704,1744506646896,-151.0,0.00019986,2]
[357886705,1744506646905,-2960.8038072,0.00019986,2]
[357886706,1744506646914,-4384.1033485,0.00019986,2]
[357886707,1744506646923,-878.39472746,0.0001999,2]
[357886708,1744506646932,-878.39472746,0.0001999,2]
[357886709,1744506646941,-878.39472746,0.0001999,2]
[357886710,1744506646950,-45186.47407766,0.00019998,2]
[357886711,1744506646959,-300.0,0.00019999,2]
[357886712,1744506646968,-150.0,0.00019999,2]
[357886713,1744506646978,-150.0,0.00019999,2]
[357886714,1744506646987,-150.0,0.00019999,2]
[357886715,1744506646996,-150.0,0.00019999,2]
[357886716,1744506647005,-150.0,0.00019999,2]
[357886717,1744506647014,-150.0,0.00019999,2]
[357886718,1744506647023,-195.48616048,0.00019999,2]
[357886719,1744506647033,-1402.0,0.0002,2]
[357886720,1744506647042,-85529.40995019,0.0002,2]
[357886721,1744506647052,-205.58212712,0.0002,2]
[357886722,1744506647061,-1378.53419737,0.0002,2]
[357886723,1744506647070,-3252.07776302,0.0002,2]
[357886724,1744506647079,-1461.0,0.0002,2]
[357886725,1744506647089,-1001148.74670574,0.0002,2]
[357886726,1744506647099,-1582441.46188428,0.0002,2]
[357886727,1744506647118,-560.06,0.0002,2]
[357886728,1744506647131,-1104.25078167,0.0002,2]
[357886729,1744506647143,-3845.52852708,0.0002,2]
[357886730,1744506647154,-60980.12920138,0.0002,2]
[357886731,1744506648759,-500.0,0.00019178,2]
[357886732,1744506648769,-500.0,0.00019452,2]
[357886733,1744506648779,-10.406841,0.00019726,2]
[357886734,1744506649223,-458.30229338,0.00019726,2]
[357886735,1744506649235,-3614.7025163,0.0002,2]
[357886736,1744506649249,-1586.89713512,0.0002,2]
[357886737,1744506649262,-8653.7062894,0.0002,2]
[357886738,1744506649281,-2420.32092998,0.0002,2]
[357886739,1744506649294,-4271.1,0.0002,2]
[357886740,1744506649307,-607.58914645,0.0002,2]
[357886741,1744506716794,248.342944,0.0003,30]
[357886742,1744506717092,248.342944,0.00019999,3]
[357886743,1744506717548,248.342944,0.00019997,3]
[357886744,1744506717835,248.342944,0.00019994,3]
[357886745,1744506718133,248.342944,0.00019992,3]
[357886746,1744506718422,248.342944,0.0001999,3]
[357886747,1744506718715,248.342944,0.0003,31]
[357886748,1744506719009,248.342944,0.0003,31]
[357886749,1744506719310,248.342944,0.0003,31]
[357886750,1744506719790,248.342944,0.0003,31]
[357886751,1744506719926,248.342944,0.0003,31]
[357886752,1744506722019,350.0,0.00019289,12]
[357886753,1744506722098,350.0,0.00019501,12]
[357886754,1744506722537,248.342944,0.0002,4]
[357886755,1744506722903,248.342944,0.0002,5]
[357886756,1744506723200,248.342944,0.00019932,5]
[357886757,1744506723495,248.342944,0.00019863,5]
[357886758,1744506723967,248.342944,0.00019794,5]
[357886759,1744506724265,248.342944,0.00019726,5]
[357886761,1744506735065,390.253197,0.0003,30]
[357886762,1744506735473,390.253197,0.00019999,3]
[357886763,1744506735809,390.253197,0.00019997,3]
[357886764,1744506736087,390.253197,0.00019994,3]
[357886765,1744506736761,390.253197,0.00019992,3]
[357886766,1744506737048,390.253197,0.0001999,3]
[357886767,1744506737352,390.253197,0.0003,31]
[357886768,1744506737654,390.253197,0.0003,31]
[357886769,1744506737936,390.253197,0.0003,31]
[357886770,1744506738242,390.253197,0.0003,31]
[357886771,1744506738536,390.253197,0.0003,31]
[357886772,1744506740255,390.253197,0.0002,4]
[357886773,1744506740328,390.253197,0.0002,5]
[357886774,1744506745358,390.253197,0.00019932,5]
[357886775,1744506745712,390.253197,0.00019863,5]
[357886776,1744506745968,390.253197,0.00019794,5]
[357886777,1744506746314,390.253197,0.00019726,5]
[357886790,1744506841882,350.0,0.00018834,12]
[357886804,1744507018687,299.99,0.00019766,7]
[357886818,1744507218180,152.0,0.0003,30]
[357886835,1744507415742,151.602557,0.00019999,3]
[357886836,1744507416033,151.602557,0.0003,31]
[357886840,1744507526166,150.0,0.00018746,7]
[357886841,1744507534837,3468.21169629,0.000195,3]
[357886842,1744507537442,381.75685925,9e-05,2]
[357886844,1744507620215,155.42,0.000192,4]
[357886845,1744507681675,350.0,0.00018557,12]
[357886846,1744507719048,1103.41491044,0.000149,2]
[357886847,1744507724159,258.64934457,0.000107,2]
[357886901,1744507831659,-1189.27015556,0.0001848,2]
[357886902,1744507831671,-300.0,0.0001848,2]
[357886903,1744507831878,-13967.53885831,0.0001848,2]
[357886904,1744507831898,-712.48828621,0.0001848,2]
[357886905,1744507831909,-3002.0,0.0001848,2]
[357886964,1744507837648,-4718.70269992,0.0001848,2]
[357886965,1744507837657,-319.2879,0.00018491,2]
[357886966,1744507837666,-250.0,0.00018624,2]
[357886967,1744507837675,-235.83,0.00018624,2]
[357886968,1744507837685,-1000.0,0.00018716,2]
[357886969,1744507837694,-250.0,0.00018744,2]
[357886970,1744507837703,-380.83,0.00019,2]
[357886971,1744507837712,-380.83,0.00019,2]
[357886972,1744507837721,-380.83,0.00019,2]
[357886973,1744507837730,-380.83,0.00019,2]
[357886974,1744507837740,-250.0,0.00019,2]
[357886975,1744507837750,-3162.56745052,0.00019,2]
[357886976,1744507837759,-42578.43183803,0.00019,2]
[357886977,1744507837771,-1762.79548783,0.00019,2]
[357886980,1744507839890,-875.16479399,0.00019,2]
[357886981,1744507840164,-197.86592735,0.00019,2]
[357886982,1744507840174,-329.84233,0.00019078,2]
[357886983,1744507840185,-446.1822,0.00019078,2]
[357886984,1744507840194,-41878.10954265,0.000191,2]
[357886994,1744507843568,-276.28993078,0.000191,2]
[357886995,1744507845065,-1067.49037407,0.000191,2]
[357886996,1744507845124,-500.0,0.000191,2]
[357887001,1744507845698,-5063.80320219,0.000191,2]
[357887002,1744507845917,-4284.45,0.000191,2]
[357887139,1744507876147,1032.32494398,0.00016673,2]
[357887140,1744507876172,195.29505602,0.00016673,2]
[357887146,1744507899841,219.91506263,0.00032,120]
[357887153,1744507992535,878.08926953,0.0002955,30]
[357887162,1744508168502,966.506705,7.945e-05,2]
[357887164,1744508641907,350.0,0.0001842,12]
[357887165,1744508739333,169.705646,0.00029588,30]
[357887166,1744508766058,169.42,0.00016712,2]
[357887167,1744508816578,446.95,0.000195,3]
[357887172,1744509001301,350.0,0.00018361,12]
[357887181,1744509031664,-258.59,0.00018357,2]
[357887182,1744509031674,-250.0,0.00018361,2]
[357887183,1744509031684,-1000.0,0.00018474,2]
[357887184,1744509031694,-163.07,0.00018625,2]
[357887185,1744509031933,-1227.62,0.00018937,2]
[357887186,1744509031943,-695.2852,0.00018978,2]
[357887187,1744509031952,-413.0,0.00019014,2]
[357887188,1744509031961,-300.0,0.00019077,2]
[357887189,1744509031970,-1411.23613563,0.00019078,2]
[357887190,1744509031979,-1000.0,0.00019078,2]
[357887191,1744509031988,-269.0334,0.00019078,2]
[357887192,1744509031997,-1558.91802504,0.00019078,2]
[357887193,1744509032027,-2317.59547496,0.00019078,2]
[357887194,1744509032036,-222.55034999,0.00019099,2]
[357887195,1744509032045,-81.73455467,0.00019099,2]
[357887196,1744509032056,-178.26544533,0.00019099,2]
[357887197,1744509032065,-42909.70593182,0.000191,2]
[357887198,1744509032097,-38445.43378456,0.000191,2]
[357887199,1744509032106,-1411.23613558,0.00019169,2]
[357887200,1744509032115,-500.0,0.00019173,2]
[357887201,1744509032124,-2000.0,0.00019178,2]
[357887202,1744509032134,-500.0,0.00019178,2]
[357887203,1744509032145,-500.0,0.00019178,2]
[357887204,1744509032155,-500.0,0.00019178,2]
[357887205,1744509032164,-500.0,0.00019178,2]
[357887207,1744509032175,-500.0,0.00019178,2]
[357887209,1744509032184,-500.0,0.00019178,2]
[357887211,1744509032193,-500.0,0.00019178,2]
[357887213,1744509032202,-500.0,0.00019178,2]
[357887215,1744509032211,-314.2549014,0.00019178,2]
[357887217,1744509032221,-500.0,0.00019178,2]
[357887219,1744509032230,-500.0,0.00019178,2]
[357887221,1744509032239,-515.99,0.00019178,2]
[357887223,1744509032248,-309.91861007,0.00019178,2]
[357887225,1744509032257,-500.0,0.00019178,2]
[357887227,1744509032266,-500.0,0.00019178,2]
[357887229,1744509032275,-500.0,0.00019178,2]
[357887231,1744509032284,-500.0,0.00019178,2]
[357887232,1744509032293,-469.97323206,0.00019178,2]
[357887234,1744509032303,-500.0,0.00019178,2]
[357887236,1744509032314,-500.0,0.00019178,2]
[357887239,1744509032323,-500.0,0.00019178,2]
[357887242,1744509032332,-503.81,0.00019178,2]
[357887245,1744509032342,-500.0,0.00019178,2]
[357887247,1744509032351,-500.0,0.00019178,2]
[357887249,1744509032360,-500.0,0.00019178,2]
[357887251,1744509032369,-583.60373087,0.00019178,2]
[357887253,1744509032379,-564.01,0.00019178,2]
[357887255,1744509032388,-500.0,0.00019178,2]
[357887257,1744509032400,-500.0,0.00019178,2]
[357887259,1744509032410,-500.0,0.00019178,2]
[357887261,1744509032419,-500.0,0.00019178,2]
[357887263,1744509032429,-500.0,0.00019178,2]
[357887265,1744509032438,-500.0,0.00019178,2]
[357887267,1744509032447,-500.0,0.00019178,2]
[357887269,1744509032456,-522.25013168,0.00019178,2]
[357887271,1744509032465,-500.0,0.00019178,2]
[357887273,1744509032474,-500.0,0.00019178,2]
[357887275,1744509032483,-500.0,0.00019178,2]
[357887277,1744509032494,-534.34840726,0.00019178,2]
[357887279,1744509032510,-203.3344014,0.00019178,2]
[357887281,1744509032521,-500.0,0.00019178,2]
[357887283,1744509032530,-500.0,0.00019178,2]
[357887285,1744509032541,-500.0,0.00019178,2]
[357887287,1744509032551,-500.0,0.00019178,2]
[357887289,1744509032561,-500.0,0.00019178,2]
[357887291,1744509032571,-500.0,0.00019178,2]
[357887293,1744509032581,-500.0,0.00019178,2]
[357887295,1744509032591,-500.0,0.00019178,2]
[357887297,1744509032600,-575.85,0.00019178,2]
[357887299,1744509032610,-500.0,0.00019178,2]
[357887301,1744509032619,-500.0,0.00019178,2]
[357887303,1744509032628,-500.0,0.00019178,2]
[357887305,1744509032637,-500.0,0.00019178,2]
[357887306,1744509032650,-150.0,0.00019178,2]
[357887307,1744509032660,-1278.0,0.00019178,2]
[357887308,1744509032669,-500.0,0.00019178,2]
[357887309,1744509032679,-500.0,0.00019178,2]
[357887310,1744509032688,-500.0,0.00019178,2]
[357887311,1744509032697,-500.0,0.00019178,2]
[357887312,1744509032706,-500.0,0.00019178,2]
[357887313,1744509032715,-500.0,0.00019178,2]
[357887314,1744509032725,-500.0,0.00019178,2]
[357887315,1744509032734,-500.0,0.00019178,2]
[357887316,1744509032743,-500.0,0.00019178,2]
[357887317,1744509032752,-500.0,0.00019178,2]
[357887318,1744509032761,-500.0,0.00019178,2]
[357887319,1744509032770,-538.74605334,0.00019178,2]
[357887320,1744509032779,-516.66,0.00019178,2]
[357887321,1744509032788,-178.8563874,0.00019178,2]
[357887322,1744509032798,-180.06829478,0.00019178,2]
[357887323,1744509032808,-150.95414481,0.00019178,2]
[357887324,1744509032819,-490.47131016,0.00019178,2]
[357887325,1744509032832,-500.0,0.00019178,2]
[357887326,1744509032846,-3985.82,0.00019178,2]
[357887327,1744509032860,-327.29527295,0.00019178,2]
[357887328,1744509032874,-500.0,0.00019178,2]
[357887329,1744509032884,-500.0,0.00019178,2]
[357887330,1744509032897,-161.36703741,0.00019178,2]
[357887331,1744509032908,-2279.81997269,0.00019178,2]
[357887335,1744509037767,-3908.24002731,0.00019178,2]
[357887336,1744509037777,-500.0,0.00019178,2]
[357887337,1744509037787,-558.13906411,0.00019178,2]
[357887338,1744509037796,-880.5,0.00019178,2]
[357887339,1744509037806,-500.0,0.00019178,2]
[357887340,1744509037815,-500.0,0.00019178,2]
[357887341,1744509037825,-500.0,0.00019178,2]
[357887342,1744509037834,-500.0,0.00019178,2]
[357887343,1744509037843,-500.0,0.00019178,2]
[357887344,1744509037852,-500.0,0.00019178,2]
[357887345,1744509037861,-500.0,0.00019178,2]
[357887346,1744509037870,-500.0,0.00019178,2]
[357887347,1744509037879,-500.0,0.00019178,2]
[357887348,1744509037889,-500.0,0.00019178,2]
[357887349,1744509037899,-500.0,0.00019178,2]
[357887350,1744509037908,-500.0,0.00019178,2]
[357887351,1744509037918,-576.34257457,0.00019178,2]
[357887352,1744509037927,-500.0,0.00019178,2]
[357887353,1744509037937,-500.0,0.00019178,2]
[357887354,1744509037946,-500.0,0.00019178,2]
[357887355,1744509037955,-246.21208624,0.00019178,2]
[357887356,1744509037964,-1551.76,0.00019178,2]
[357887357,1744509037975,-500.0,0.00019178,2]
[357887358,1744509037985,-500.0,0.00019178,2]
[357887359,1744509037994,-500.0,0.00019178,2]
[357887360,1744509038003,-500.0,0.00019178,2]
[357887361,1744509038012,-500.0,0.00019178,2]
[357887362,1744509038021,-500.0,0.00019178,2]
[357887363,1744509038032,-500.0,0.00019178,2]
[357887364,1744509038041,-500.0,0.00019178,2]
[357887365,1744509038050,-500.0,0.00019178,2]
[357887366,1744509038059,-500.0,0.00019178,2]
[357887367,1744509038068,-500.0,0.00019178,2]
[357887368,1744509038078,-500.0,0.00019178,2]
[357887369,1744509038087,-500.0,0.00019178,2]
[357887370,1744509038096,-500.0,0.00019178,2]
[357887371,1744509038105,-1800.1,0.00019178,2]
[357887372,1744509038114,-500.0,0.00019178,2]
[357887373,1744509038123,-31267.24,0.00019178,2]
[357887374,1744509038132,-198.73386326,0.00019178,2]
[357887375,1744509038142,-424.60796765,0.00019178,2]
[357887376,1744509038152,-500.0,0.00019178,2]
[357887377,1744509038161,-500.0,0.00019178,2]
[357887378,1744509038170,-640.14,0.00019178,2]
[357887379,1744509038179,-974.57,0.00019178,2]
[357887380,1744509038188,-645.05,0.00019178,2]
[357887381,1744509038197,-500.0,0.00019178,2]
[357887382,1744509038206,-500.0,0.00019178,2]
[357887383,1744509038216,-1119.21,0.00019178,2]
[357887384,1744509038225,-500.0,0.00019178,2]
[357887385,1744509038235,-1715.56,0.00019178,2]
[357887386,1744509038244,-500.0,0.00019178,2]
[357887387,1744509038254,-500.0,0.00019178,2]
[357887388,1744509038263,-500.0,0.00019178,2]
[357887389,1744509038271,-500.0,0.00019178,2]
[357887390,1744509038280,-500.0,0.00019178,2]
[357887391,1744509038289,-3412.73,0.00019178,2]
[357887392,1744509038298,-500.0,0.00019178,2]
[357887393,1744509038307,-500.0,0.00019178,2]
[357887394,1744509038317,-500.0,0.00019178,2]
[357887395,1744509038326,-500.0,0.00019178,2]
[357887396,1744509038336,-500.0,0.00019178,2]
[357887397,1744509038345,-556.82,0.00019178,2]
[357887398,1744509038354,-500.0,0.00019178,2]
[357887399,1744509038364,-500.0,0.00019178,2]
[357887400,1744509038373,-500.0,0.00019178,2]
[357887401,1744509038383,-500.0,0.00019178,2]
[357887402,1744509038392,-500.06,0.00019178,2]
[357887403,1744509038402,-500.0,0.00019178,2]
[357887404,1744509038411,-503.15,0.00019178,2]
[357887405,1744509038420,-513.42,0.00019178,2]
[357887406,1744509038429,-500.0,0.00019178,2]
[357887407,1744509038439,-500.0,0.00019178,2]
[357887408,1744509038448,-646.46,0.00019178,2]
[357887409,1744509038457,-500.0,0.00019178,2]
[357887410,1744509038466,-324.04221198,0.00019178,2]
[357887411,1744509038475,-500.0,0.00019178,2]
[357887412,1744509038485,-1551.57,0.00019178,2]
[357887413,1744509038495,-205.64961042,0.00019178,2]
[357887414,1744509038506,-500.0,0.00019178,2]
[357887415,1744509038515,-500.0,0.00019178,2]
[357887416,1744509038524,-530.43,0.00019178,2]
[357887417,1744509038534,-515.58,0.00019178,2]
[357887418,1744509038544,-500.0,0.00019178,2]
[357887419,1744509038553,-274.44092661,0.00019178,2]
[357887420,1744509038563,-500.0,0.00019178,2]
[357887421,1744509038572,-44.24166786,0.00019178,2]
[357887422,1744509038587,-418.63999791,0.00019178,2]
[357887423,1744509038605,-123.04833423,0.00019178,2]
[357887424,1744509038614,-543.21077969,0.00019178,2]
[357887425,1744509038624,-539.08535474,0.00019178,2]
[357887426,1744509038634,-81.32181892,0.00019178,2]
[357887428,1744509039853,-134.92699865,0.00019178,2]
[357887429,1744509039863,-509.16,0.00019178,2]
[357887430,1744509039873,-500.0,0.00019178,2]
[357887431,1744509039883,-500.0,0.00019178,2]
[357887432,1744509039893,-380.83,0.000192,2]
[357887433,1744509039903,-150.0,0.000192,2]
[357887434,1744509039912,-150.0,0.000192,2]
[357887435,1744509039922,-150.0,0.000192,2]
[357887436,1744509039931,-150.0,0.000192,2]
[357887437,1744509039940,-152.36,0.000192,2]
[357887438,1744509039949,-192.61,0.000192,2]
[357887439,1744509039959,-1278.0,0.00019233,2]
[357887440,1744509039969,-500.0,0.00019233,2]
[357887441,1744509039979,-1411.23613558,0.00019261,2]
[357887442,1744509039988,-1278.0,0.00019288,2]
[357887443,1744509039998,-588.16208227,0.00019288,2]
[357887444,1744509040008,-150.0,0.000193,2]
[357887445,1744509040017,-150.0,0.000193,2]
[357887446,1744509040027,-1000.0,0.000193,2]
[357887447,1744509040037,-200.49400343,0.00019338,2]
[357887448,1744509040046,-1278.0,0.00019342,2]
[357887449,1744509040056,-1411.23613558,0.00019352,2]
[357887450,1744509040065,-1278.0,0.00019397,2]
[357887451,1744509040075,-945.3521845,0.00019399,2]
[357887452,1744509040084,-172.47,0.000194,2]
[357887453,1744509040093,-150.63,0.000194,2]
[357887454,1744509040103,-1000.0,0.000194,2]
[357887455,1744509040112,-553.81,0.00019442,2]
[357887456,1744509040121,-1411.23613558,0.00019443,2]
[357887457,1744509040130,-1278.0,0.00019452,2]
[357887458,1744509040140,-2013.524255,0.00019452,2]
[357887459,1744509040149,-500.0,0.00019452,2]
[357887460,1744509040162,-500.0,0.00019452,2]
[357887461,1744509040172,-500.0,0.00019452,2]
[357887462,1744509040182,-500.0,0.00019452,2]
[357887463,1744509040192,-500.0,0.00019452,2]
[357887464,1744509040201,-500.0,0.00019452,2]
[357887465,1744509040211,-503.5422251,0.00019452,2]
[357887466,1744509040220,-500.0,0.00019452,2]
[357887467,1744509040229,-500.0,0.00019452,2]
[357887468,1744509040239,-503.23018259,0.00019452,2]
[357887469,1744509040249,-515.99,0.00019452,2]
[357887470,1744509040259,-500.0,0.00019452,2]
[357887471,1744509040268,-501.79323593,0.00019452,2]
[357887472,1744509040277,-500.0,0.00019452,2]
[357887473,1744509040287,-500.0,0.00019452,2]
[357887474,1744509040297,-500.0,0.00019452,2]
[357887475,1744509040307,-500.0,0.00019452,2]
[357887476,1744509040316,-500.0,0.00019452,2]
[357887477,1744509040325,-503.81,0.00019452,2]
[357887478,1744509040335,-500.0,0.00019452,2]
[357887479,1744509040344,-500.0,0.00019452,2]
[357887480,1744509040354,-500.0,0.00019452,2]
[357887481,1744509040363,-564.01,0.00019452,2]
[357887482,1744509040372,-500.0,0.00019452,2]
[357887483,1744509040382,-500.0,0.00019452,2]
[357887484,1744509040392,-500.0,0.00019452,2]
[357887485,1744509040403,-500.0,0.00019452,2]
[357887486,1744509040413,-104.08642309,0.00019452,2]
[357887487,1744509040430,-395.91357691,0.00019452,2]
[357887488,1744509040440,-98.88407343,0.00019452,2]
[357887489,1744509040507,-401.11592657,0.00019452,2]
[357887490,1744509040517,-333.92376118,0.00019452,2]
[357887491,1744509040529,-166.07623882,0.00019452,2]
[357887492,1744509040539,-250.221345,0.00019452,2]
[357887493,1744509040555,-249.778655,0.00019452,2]
[357887494,1744509040566,-500.0,0.00019452,2]
[357887495,1744509040577,-500.0,0.00019452,2]
[357887496,1744509040587,-500.0,0.00019452,2]
[357887497,1744509040598,-500.0,0.00019452,2]
[357887498,1744509040609,-500.0,0.00019452,2]
[357887499,1744509040619,-500.0,0.00019452,2]
[357887500,1744509040629,-500.0,0.00019452,2]
[357887501,1744509040640,-500.0,0.00019452,2]
[357887502,1744509040652,-500.0,0.00019452,2]
[357887503,1744509040666,-500.0,0.00019452,2]
[357887504,1744509040675,-575.85,0.00019452,2]
[357887505,1744509040686,-500.0,0.00019452,2]
[357887506,1744509040695,-500.0,0.00019452,2]
[357887507,1744509040704,-500.0,0.00019452,2]
[357887508,1744509040713,-601.51392281,0.00019452,2]
[357887509,1744509040723,-500.0,0.00019452,2]
[357887510,1744509040732,-500.0,0.00019452,2]
[357887511,1744509040742,-500.0,0.00019452,2]
[357887512,1744509040751,-500.0,0.00019452,2]
[357887513,1744509040762,-199.69279032,0.00019452,2]
[357887514,1744509040772,-500.0,0.00019452,2]
[357887515,1744509040781,-500.0,0.00019452,2]
[357887516,1744509040791,-500.0,0.00019452,2]
[357887517,1744509040801,-500.0,0.00019452,2]
[357887518,1744509040811,-516.66,0.00019452,2]
[357887519,1744509040820,-500.0,0.00019452,2]
[357887520,1744509040830,-3985.82,0.00019452,2]
[357887521,1744509040839,-500.0,0.00019452,2]
[357887522,1744509040849,-237.29942107,0.00019452,2]
[357887523,1744509040858,-6188.06,0.00019452,2]
[357887524,1744509040867,-500.0,0.00019452,2]
[357887525,1744509040876,-880.5,0.00019452,2]
[357887526,1744509040885,-627.65166671,0.00019452,2]
[357887527,1744509040894,-545.08813159,0.00019452,2]
[357887528,1744509040905,-500.0,0.00019452,2]
[357887529,1744509040914,-500.0,0.00019452,2]
[357887530,1744509040923,-500.0,0.00019452,2]
[357887531,1744509040935,-500.0,0.00019452,2]
[357887532,1744509040944,-500.0,0.00019452,2]
[357887533,1744509040953,-500.0,0.00019452,2]
[357887534,1744509040963,-500.0,0.00019452,2]
[357887535,1744509040972,-500.0,0.00019452,2]
[357887536,1744509040982,-500.0,0.00019452,2]
[357887537,1744509040991,-500.0,0.00019452,2]
[357887538,1744509041000,-500.0,0.00019452,2]
[357887539,1744509041010,-500.0,0.00019452,2]
[357887540,1744509041019,-500.0,0.00019452,2]
[357887541,1744509041029,-1551.76,0.00019452,2]
[357887542,1744509041038,-500.0,0.00019452,2]